[Event "Titled Tuesday Blitz August 15 Late 2023"]
[White "Kekic, Armin"]
[Black "Deng, Henry"]
[WhiteFideId "14401274"]
[BlackFideId "30965454"]
[WhiteElo "2353"]
[BlackElo "2543"]
[Result "1-0"]
[Round "4"]
[TimeControl "180+1"]
[Date "2023.08.15"]
[WhiteClock "0:00:07"]
[BlackClock "0:00:20"]
[Board "118"]

1. e4 {[%clk 0:03:00]}  c5 {[%clk 0:02:58]} 2. c3 {[%clk 0:03:00]}  Nf6 {[%clk 0:02:58]} 3. d3 {[%clk 0:02:59]}  d5 {[%clk 0:02:55]} 4. Nd2 {[%clk 0:02:59]}  Nc6 {[%clk 0:02:54]} 5. Ngf3 {[%clk 0:02:58]}  g6 {[%clk 0:02:54]} 6. Be2 {[%clk 0:02:58]}  Bg7 {[%clk 0:02:55]} 7. O-O {[%clk 0:02:59]}  O-O {[%clk 0:02:55]} 8. Re1 {[%clk 0:03:00]}  Re8 {[%clk 0:02:46]} 9. h3 {[%clk 0:03:00]}  b6 {[%clk 0:02:42]} 10. Qc2 {[%clk 0:02:58]}  Bb7 {[%clk 0:02:42]} 11. Nf1 {[%clk 0:02:56]}  Qc7 {[%clk 0:02:40]} 12. Ng3 {[%clk 0:02:48]}  Rad8 {[%clk 0:02:35]} 13. Bf1 {[%clk 0:02:47]}  h6 {[%clk 0:02:19]} 14. a3 {[%clk 0:02:31]}  a6 {[%clk 0:02:01]} 15. e5 {[%clk 0:02:27]}  Nd7 {[%clk 0:01:43]} 16. e6 {[%clk 0:02:27]}  Nde5 {[%clk 0:01:44]} 17. Nxe5 {[%clk 0:02:26]}  Nxe5 {[%clk 0:01:42]} 18. f4 {[%clk 0:01:53]}  Nc6 {[%clk 0:01:40]} 19. exf7+ {[%clk 0:01:53]}  Kxf7 {[%clk 0:01:41]} 20. Qf2 {[%clk 0:01:46]}  Kg8 {[%clk 0:01:36]} 21. Qf3 {[%clk 0:01:46]}  e5 {[%clk 0:01:27]} 22. Qg4 {[%clk 0:01:46]}  exf4 {[%clk 0:01:06]} 23. Bxf4 {[%clk 0:01:44]}  Qf7 {[%clk 0:01:05]} 24. h4 {[%clk 0:01:13]}  Bc8 {[%clk 0:00:56]} 25. Qf3 {[%clk 0:01:08]}  Rf8 {[%clk 0:00:54]} 26. Ne2 {[%clk 0:00:52]}  Rde8 {[%clk 0:00:42]} 27. Bd6 {[%clk 0:00:14]}  Qxf3 {[%clk 0:00:41]} 28. gxf3 {[%clk 0:00:15]}  Rxf3 {[%clk 0:00:41]} 29. Bg2 {[%clk 0:00:16]}  Rf4 {[%clk 0:00:19]} 30. Nxf4 {[%clk 0:00:13]}  Rxe1+ {[%clk 0:00:17]} 31. Rxe1 {[%clk 0:00:14]}  g5 {[%clk 0:00:11]} 32. Bxd5+ {[%clk 0:00:14]}  Kh7 {[%clk 0:00:12]} 33. Be4+ {[%clk 0:00:12]}  Kg8 {[%clk 0:00:12]} 34. Bxc6 {[%clk 0:00:11]}  gxf4 {[%clk 0:00:12]} 35. Re8+ {[%clk 0:00:11]}  Kf7 {[%clk 0:00:12]} 36. Rxc8 {[%clk 0:00:11]}  Ke6 {[%clk 0:00:12]} 37. Bxf4 {[%clk 0:00:11]}  Bf6 {[%clk 0:00:12]} 38. Be4 {[%clk 0:00:10]}  Bxh4 {[%clk 0:00:12]} 39. Rc6+ {[%clk 0:00:10]}  Kd7 {[%clk 0:00:12]} 40. Rxb6 {[%clk 0:00:09]}  Be1 {[%clk 0:00:12]} 41. Rxa6 {[%clk 0:00:09]}  c4 {[%clk 0:00:13]} 42. dxc4 {[%clk 0:00:09]}  Bxc3 {[%clk 0:00:14]} 43. bxc3 {[%clk 0:00:08]}  h5 {[%clk 0:00:14]} 44. Rc6 {[%clk 0:00:08]}  h4 {[%clk 0:00:15]} 45. a4 {[%clk 0:00:08]}  h3 {[%clk 0:00:16]} 46. a5 {[%clk 0:00:08]}  h2+ {[%clk 0:00:17]} 47. Kxh2 {[%clk 0:00:08]}  Ke7 {[%clk 0:00:17]} 48. a6 {[%clk 0:00:09]}  Kd7 {[%clk 0:00:18]} 49. a7 {[%clk 0:00:10]}  Ke7 {[%clk 0:00:19]} 50. a8=Q {[%clk 0:00:09]}  Kd7 {[%clk 0:00:19]} 51. Qb7+ {[%clk 0:00:09]}  Kd8 {[%clk 0:00:20]} 52. Rc8# {[%clk 0:00:07]} 1-0


[Site "https://www.chess.com"]

[Event "Titled Tuesday Blitz August 15 Late 2023"]
[White "Daianu, Cristian-Clement"]
[Black "elpera"]
[WhiteFideId "1208926"]
[WhiteElo "2320"]
[BlackElo "2503"]
[Result "1-0"]
[Round "4"]
[TimeControl "180+1"]
[Date "2023.08.15"]
[WhiteClock "0:02:25"]
[BlackClock "0:01:38"]
[Board "124"]

1. e4 {[%clk 0:02:58]}  c5 {[%clk 0:02:59]} 2. Nf3 {[%clk 0:02:57]}  d6 {[%clk 0:03:00]} 3. d4 {[%clk 0:02:57]}  cxd4 {[%clk 0:03:01]} 4. Nxd4 {[%clk 0:02:58]}  Nf6 {[%clk 0:03:02]} 5. Nc3 {[%clk 0:02:58]}  a6 {[%clk 0:03:02]} 6. Qf3 {[%clk 0:02:59]}  e5 {[%clk 0:02:59]} 7. Nf5 {[%clk 0:02:59]}  g6 {[%clk 0:02:58]} 8. Ne3 {[%clk 0:02:59]}  Nc6 {[%clk 0:02:55]} 9. Ned5 {[%clk 0:02:56]}  Nxd5 {[%clk 0:02:47]} 10. Nxd5 {[%clk 0:02:57]}  Bg7 {[%clk 0:02:47]} 11. h4 {[%clk 0:02:55]}  Nd4 {[%clk 0:02:47]} 12. Qd1 {[%clk 0:02:53]}  Be6 {[%clk 0:02:45]} 13. c3 {[%clk 0:02:53]}  Bxd5 {[%clk 0:02:44]} 14. exd5 {[%clk 0:02:53]}  Nf5 {[%clk 0:02:41]} 15. Bd3 {[%clk 0:02:54]}  Ne7 {[%clk 0:02:41]} 16. c4 {[%clk 0:02:52]}  h6 {[%clk 0:02:29]} 17. O-O {[%clk 0:02:50]}  Rc8 {[%clk 0:02:29]} 18. b3 {[%clk 0:02:50]}  O-O {[%clk 0:02:23]} 19. Be3 {[%clk 0:02:45]}  f5 {[%clk 0:02:19]} 20. Bc2 {[%clk 0:02:35]}  f4 {[%clk 0:02:12]} 21. Bd2 {[%clk 0:02:35]}  Nf5 {[%clk 0:02:13]} 22. Qg4 {[%clk 0:02:31]}  Qxh4 {[%clk 0:01:52]} 23. Bxf5 {[%clk 0:02:30]}  Qxg4 {[%clk 0:01:46]} 24. Bxg4 {[%clk 0:02:31]}  Rce8 {[%clk 0:01:45]} 25. b4 {[%clk 0:02:27]}  e4 {[%clk 0:01:43]} 26. Rae1 {[%clk 0:02:26]}  h5 {[%clk 0:01:42]} 27. Be6+ {[%clk 0:02:26]}  Kh7 {[%clk 0:01:42]} 28. Rxe4 {[%clk 0:02:25]}  Bd4 {[%clk 0:01:38]} 29. Rxd4 {[%clk 0:02:25]} 1-0


[Site "https://www.chess.com"]

[Event "Titled Tuesday Blitz August 15 Late 2023"]
[White "rikchessmx"]
[Black "arenal72"]
[WhiteElo "2299"]
[BlackElo "2492"]
[Result "0-1"]
[Round "4"]
[TimeControl "180+1"]
[Date "2023.08.15"]
[WhiteClock "0:01:30"]
[BlackClock "0:01:58"]
[Board "128"]

1. e4 {[%clk 0:03:00]}  Nc6 {[%clk 0:02:57]} 2. Nf3 {[%clk 0:03:00]}  d6 {[%clk 0:02:57]} 3. d4 {[%clk 0:03:00]}  Nf6 {[%clk 0:02:57]} 4. h3 {[%clk 0:02:58]}  Nxe4 {[%clk 0:02:56]} 5. d5 {[%clk 0:02:57]}  Nb8 {[%clk 0:02:55]} 6. Qd4 {[%clk 0:02:55]}  Nf6 {[%clk 0:02:54]} 7. g4 {[%clk 0:02:54]}  c5 {[%clk 0:02:54]} 8. Qd1 {[%clk 0:02:48]}  e6 {[%clk 0:02:50]} 9. c4 {[%clk 0:02:45]}  exd5 {[%clk 0:02:47]} 10. g5 {[%clk 0:02:42]}  Nfd7 {[%clk 0:02:41]} 11. Qxd5 {[%clk 0:02:39]}  Nc6 {[%clk 0:02:41]} 12. Nc3 {[%clk 0:02:36]}  Nb4 {[%clk 0:02:37]} 13. Qd1 {[%clk 0:02:34]}  Be7 {[%clk 0:02:34]} 14. h4 {[%clk 0:02:33]}  Nc6 {[%clk 0:02:30]} 15. Be3 {[%clk 0:02:00]}  Nde5 {[%clk 0:02:29]} 16. Nxe5 {[%clk 0:01:57]}  Nxe5 {[%clk 0:02:29]} 17. Be2 {[%clk 0:01:55]}  O-O {[%clk 0:02:27]} 18. f4 {[%clk 0:01:54]}  Nc6 {[%clk 0:02:26]} 19. Qd2 {[%clk 0:01:52]}  Bf5 {[%clk 0:02:21]} 20. O-O-O {[%clk 0:01:47]}  a6 {[%clk 0:02:14]} 21. Bd3 {[%clk 0:01:42]}  Qd7 {[%clk 0:02:03]} 22. h5 {[%clk 0:01:41]}  b5 {[%clk 0:02:01]} 23. a3 {[%clk 0:01:38]}  Na5 {[%clk 0:01:58]} 24. Nd5 {[%clk 0:01:35]}  Nb3+ {[%clk 0:01:57]} 25. Kc2 {[%clk 0:01:30]}  Nxd2 {[%clk 0:01:58]} 0-1


[Site "https://www.chess.com"]

[Event "Titled Tuesday Blitz August 15 Late 2023"]
[White "Seletsky, Grigory"]
[Black "6PackPlayer"]
[WhiteFideId "14112191"]
[WhiteElo "2490"]
[BlackElo "2294"]
[Result "1/2-1/2"]
[Round "4"]
[TimeControl "180+1"]
[Date "2023.08.15"]
[WhiteClock "0:02:00"]
[BlackClock "0:02:15"]
[Board "129"]

1. e4 {[%clk 0:02:59]}  e5 {[%clk 0:02:58]} 2. Nf3 {[%clk 0:02:59]}  Nc6 {[%clk 0:02:59]} 3. Bb5 {[%clk 0:02:59]}  a6 {[%clk 0:02:58]} 4. Bxc6 {[%clk 0:02:59]}  dxc6 {[%clk 0:02:56]} 5. d4 {[%clk 0:02:59]}  exd4 {[%clk 0:02:54]} 6. Qxd4 {[%clk 0:03:00]}  Qxd4 {[%clk 0:02:51]} 7. Nxd4 {[%clk 0:03:01]}  Bd7 {[%clk 0:02:50]} 8. Be3 {[%clk 0:03:01]}  O-O-O {[%clk 0:02:50]} 9. Nd2 {[%clk 0:03:02]}  c5 {[%clk 0:02:50]} 10. Ne2 {[%clk 0:03:01]}  f6 {[%clk 0:02:49]} 11. O-O-O {[%clk 0:03:01]}  b6 {[%clk 0:02:48]} 12. f3 {[%clk 0:03:01]}  Ne7 {[%clk 0:02:48]} 13. Nc3 {[%clk 0:02:58]}  Ng6 {[%clk 0:02:48]} 14. Nd5 {[%clk 0:02:57]}  Bc6 {[%clk 0:02:48]} 15. Nf4 {[%clk 0:02:48]}  Ne5 {[%clk 0:02:44]} 16. Ne6 {[%clk 0:02:48]}  Re8 {[%clk 0:02:43]} 17. Nxf8 {[%clk 0:02:48]}  Rhxf8 {[%clk 0:02:44]} 18. Bf4 {[%clk 0:02:47]}  Ng6 {[%clk 0:02:42]} 19. Bg3 {[%clk 0:02:46]}  f5 {[%clk 0:02:43]} 20. exf5 {[%clk 0:02:46]}  Rxf5 {[%clk 0:02:44]} 21. Rhe1 {[%clk 0:02:47]}  Ref8 {[%clk 0:02:43]} 22. Nc4 {[%clk 0:02:41]}  h5 {[%clk 0:02:40]} 23. Re6 {[%clk 0:02:37]}  R5f6 {[%clk 0:02:38]} 24. Rxf6 {[%clk 0:02:34]}  Rxf6 {[%clk 0:02:39]} 25. h3 {[%clk 0:02:33]}  h4 {[%clk 0:02:35]} 26. Bh2 {[%clk 0:02:33]}  b5 {[%clk 0:02:26]} 27. Ne5 {[%clk 0:02:31]}  Nxe5 {[%clk 0:02:26]} 28. Bxe5 {[%clk 0:02:31]}  Rg6 {[%clk 0:02:27]} 29. Rd2 {[%clk 0:02:30]}  Rg5 {[%clk 0:02:22]} 30. Bf4 {[%clk 0:02:26]}  Rg6 {[%clk 0:02:21]} 31. Kd1 {[%clk 0:02:25]}  a5 {[%clk 0:02:21]} 32. Be3 {[%clk 0:02:20]}  c4 {[%clk 0:02:18]} 33. c3 {[%clk 0:02:21]}  Rxg2 {[%clk 0:02:17]} 34. Rxg2 {[%clk 0:02:19]}  Bxf3+ {[%clk 0:02:17]} 35. Ke1 {[%clk 0:02:19]}  Bxg2 {[%clk 0:02:16]} 36. Bg5 {[%clk 0:02:20]}  Bxh3 {[%clk 0:02:17]} 37. Bxh4 {[%clk 0:02:20]}  Bf5 {[%clk 0:02:15]} 38. Kf2 {[%clk 0:02:20]}  Kd7 {[%clk 0:02:15]} 39. Ke3 {[%clk 0:02:19]}  Ke6 {[%clk 0:02:15]} 40. Kf4 {[%clk 0:02:19]}  Bb1 {[%clk 0:02:14]} 41. a3 {[%clk 0:02:18]}  c5 {[%clk 0:02:14]} 42. Bd8 {[%clk 0:02:18]}  Kd5 {[%clk 0:02:15]} 43. Bxa5 {[%clk 0:02:17]}  g5+ {[%clk 0:02:15]} 44. Kxg5 {[%clk 0:02:16]}  Ke4 {[%clk 0:02:16]} 45. Kf6 {[%clk 0:01:59]}  Kd3 {[%clk 0:02:16]} 46. Ke5 {[%clk 0:02:00]}  Kc2 {[%clk 0:02:16]} 47. Kd5 {[%clk 0:02:00]}  Kxb2 {[%clk 0:02:15]} 48. Kxc5 {[%clk 0:02:00]}  Kxa3 {[%clk 0:02:14]} 49. Kxb5 {[%clk 0:02:01]}  Kb3 {[%clk 0:02:15]} 50. Bb4 {[%clk 0:02:00]}  Bd3 {[%clk 0:02:16]} 51. Kc5 {[%clk 0:02:00]}  Be2 {[%clk 0:02:17]} 52. Kd4 {[%clk 0:02:00]}  Bd3 {[%clk 0:02:15]} 1/2-1/2


[Site "https://www.chess.com"]

[Event "Titled Tuesday Blitz August 15 Late 2023"]
[White "Tomb, Maroun"]
[Black "Ai, Evan"]
[WhiteFideId "5300398"]
[BlackFideId "2094770"]
[WhiteElo "2488"]
[BlackElo "2271"]
[Result "1-0"]
[Round "4"]
[TimeControl "180+1"]
[Date "2023.08.15"]
[WhiteClock "0:00:20"]
[BlackClock "0:00:10"]
[Board "130"]

1. e4 {[%clk 0:03:00]}  e5 {[%clk 0:02:30]} 2. Nf3 {[%clk 0:03:00]}  Nc6 {[%clk 0:02:30]} 3. Bb5 {[%clk 0:03:01]}  a6 {[%clk 0:02:30]} 4. Ba4 {[%clk 0:03:01]}  Nf6 {[%clk 0:02:30]} 5. d4 {[%clk 0:03:02]}  b5 {[%clk 0:02:23]} 6. Bb3 {[%clk 0:03:01]}  Nxd4 {[%clk 0:02:21]} 7. Nxd4 {[%clk 0:03:01]}  exd4 {[%clk 0:02:22]} 8. e5 {[%clk 0:03:02]}  Qe7 {[%clk 0:02:00]} 9. O-O {[%clk 0:03:00]}  Ng8 {[%clk 0:01:51]} 10. Qxd4 {[%clk 0:02:35]}  Bb7 {[%clk 0:01:47]} 11. c4 {[%clk 0:02:19]}  Qc5 {[%clk 0:01:33]} 12. Qf4 {[%clk 0:02:08]}  Nh6 {[%clk 0:00:50]} 13. Nc3 {[%clk 0:02:02]}  Be7 {[%clk 0:00:44]} 14. Be3 {[%clk 0:01:39]}  Qc6 {[%clk 0:00:38]} 15. Nd5 {[%clk 0:01:28]}  Bd8 {[%clk 0:00:20]} 16. Rac1 {[%clk 0:01:23]}  Qg6 {[%clk 0:00:18]} 17. h3 {[%clk 0:00:27]}  Qf5 {[%clk 0:00:11]} 18. Qg3 {[%clk 0:00:26]}  Qg6 {[%clk 0:00:10]} 19. Qh2 {[%clk 0:00:24]}  Nf5 {[%clk 0:00:08]} 20. Bc2 {[%clk 0:00:21]}  Qe6 {[%clk 0:00:07]} 21. Nf4 {[%clk 0:00:19]}  Qc6 {[%clk 0:00:07]} 22. Rfe1 {[%clk 0:00:18]}  Nxe3 {[%clk 0:00:07]} 23. Rxe3 {[%clk 0:00:19]}  Be7 {[%clk 0:00:07]} 24. Be4 {[%clk 0:00:19]}  Qb6 {[%clk 0:00:07]} 25. Nd5 {[%clk 0:00:20]}  Bxd5 {[%clk 0:00:07]} 26. cxd5 {[%clk 0:00:20]}  Bc5 {[%clk 0:00:07]} 27. Re2 {[%clk 0:00:20]}  O-O-O {[%clk 0:00:07]} 28. a3 {[%clk 0:00:19]}  a5 {[%clk 0:00:07]} 29. b4 {[%clk 0:00:19]}  axb4 {[%clk 0:00:08]} 30. axb4 {[%clk 0:00:20]}  Bxb4 {[%clk 0:00:08]} 31. Rb1 {[%clk 0:00:20]}  Bc5 {[%clk 0:00:09]} 32. Reb2 {[%clk 0:00:20]}  c6 {[%clk 0:00:08]} 33. e6 {[%clk 0:00:20]}  d6 {[%clk 0:00:09]} 34. dxc6 {[%clk 0:00:20]}  b4 {[%clk 0:00:09]} 35. exf7 {[%clk 0:00:20]}  Kc7 {[%clk 0:00:09]} 36. Bd5 {[%clk 0:00:21]}  Rhf8 {[%clk 0:00:09]} 37. Qg3 {[%clk 0:00:21]}  g6 {[%clk 0:00:09]} 38. Qg5 {[%clk 0:00:20]}  Kb8 {[%clk 0:00:09]} 39. Qe7 {[%clk 0:00:21]}  Qc7 {[%clk 0:00:10]} 40. Rxb4+ {[%clk 0:00:20]}  Bxb4 {[%clk 0:00:10]} 41. Rxb4+ {[%clk 0:00:20]}  Kc8 {[%clk 0:00:10]} 42. Be6+ {[%clk 0:00:20]} 1-0


[Site "https://www.chess.com"]

[Event "Titled Tuesday Blitz August 15 Late 2023"]
[White "Vaglio Munoz, Jaime"]
[Black "Merino Garcia, Rafael II"]
[WhiteFideId "6500145"]
[BlackFideId "2209128"]
[WhiteElo "2248"]
[BlackElo "2481"]
[Result "0-1"]
[Round "4"]
[TimeControl "180+1"]
[Date "2023.08.15"]
[WhiteClock "0:00:19"]
[BlackClock "0:00:09"]
[Board "133"]

1. Nf3 {[%clk 0:03:00]}  Nf6 {[%clk 0:02:59]} 2. c4 {[%clk 0:03:01]}  e6 {[%clk 0:02:59]} 3. b3 {[%clk 0:03:01]}  d5 {[%clk 0:02:56]} 4. Bb2 {[%clk 0:03:02]}  Nbd7 {[%clk 0:02:53]} 5. g3 {[%clk 0:03:02]}  Be7 {[%clk 0:02:48]} 6. Bg2 {[%clk 0:03:02]}  O-O {[%clk 0:02:48]} 7. O-O {[%clk 0:03:02]}  b6 {[%clk 0:02:47]} 8. a3 {[%clk 0:03:02]}  Bb7 {[%clk 0:02:47]} 9. d3 {[%clk 0:03:00]}  a6 {[%clk 0:02:34]} 10. Re1 {[%clk 0:02:56]}  h6 {[%clk 0:02:20]} 11. Nc3 {[%clk 0:02:51]}  dxc4 {[%clk 0:02:06]} 12. dxc4 {[%clk 0:02:49]}  Nc5 {[%clk 0:02:05]} 13. b4 {[%clk 0:02:48]}  Nce4 {[%clk 0:02:01]} 14. Nxe4 {[%clk 0:02:44]}  Bxe4 {[%clk 0:01:57]} 15. Nd4 {[%clk 0:02:40]}  Bxg2 {[%clk 0:01:55]} 16. Kxg2 {[%clk 0:02:41]}  Qd7 {[%clk 0:01:42]} 17. e3 {[%clk 0:02:37]}  c5 {[%clk 0:01:41]} 18. Nc2 {[%clk 0:02:31]}  Qc6+ {[%clk 0:01:30]} 19. Qf3 {[%clk 0:02:30]}  Qxf3+ {[%clk 0:01:21]} 20. Kxf3 {[%clk 0:02:31]}  Rfd8 {[%clk 0:01:15]} 21. Red1 {[%clk 0:02:29]}  Rac8 {[%clk 0:01:11]} 22. b5 {[%clk 0:02:17]}  axb5 {[%clk 0:01:09]} 23. cxb5 {[%clk 0:02:18]}  Nd5 {[%clk 0:01:08]} 24. e4 {[%clk 0:02:13]}  Nc7 {[%clk 0:01:07]} 25. a4 {[%clk 0:02:13]}  Bf6 {[%clk 0:01:00]} 26. Bxf6 {[%clk 0:02:09]}  gxf6 {[%clk 0:01:00]} 27. Ne3 {[%clk 0:02:09]}  Kf8 {[%clk 0:00:51]} 28. Nc4 {[%clk 0:02:08]}  Na8 {[%clk 0:00:50]} 29. Ke3 {[%clk 0:01:57]}  Ke7 {[%clk 0:00:50]} 30. f4 {[%clk 0:01:57]}  Rb8 {[%clk 0:00:46]} 31. Rxd8 {[%clk 0:01:44]}  Rxd8 {[%clk 0:00:45]} 32. a5 {[%clk 0:01:44]}  bxa5 {[%clk 0:00:40]} 33. Nxa5 {[%clk 0:01:45]}  Rc8 {[%clk 0:00:32]} 34. Nc6+ {[%clk 0:01:44]}  Kd6 {[%clk 0:00:32]} 35. e5+ {[%clk 0:01:25]}  fxe5 {[%clk 0:00:30]} 36. fxe5+ {[%clk 0:01:26]}  Kc7 {[%clk 0:00:29]} 37. Ra7+ {[%clk 0:01:22]}  Kb6 {[%clk 0:00:29]} 38. Rxf7 {[%clk 0:01:22]}  Nc7 {[%clk 0:00:27]} 39. Ke4 {[%clk 0:01:14]}  Ra8 {[%clk 0:00:24]} 40. Kf3 {[%clk 0:01:08]}  Kxb5 {[%clk 0:00:23]} 41. Ne7 {[%clk 0:01:07]}  Ra3+ {[%clk 0:00:22]} 42. Kg4 {[%clk 0:01:06]}  c4 {[%clk 0:00:21]} 43. Ng6 {[%clk 0:01:02]}  Nd5 {[%clk 0:00:21]} 44. Nf8 {[%clk 0:00:51]}  c3 {[%clk 0:00:20]} 45. Rf2 {[%clk 0:00:49]}  Ra6 {[%clk 0:00:18]} 46. Nd7 {[%clk 0:00:47]}  Rc6 {[%clk 0:00:17]} 47. Nf6 {[%clk 0:00:47]}  Kc4 {[%clk 0:00:15]} 48. Ne4 {[%clk 0:00:42]}  Kd3 {[%clk 0:00:14]} 49. Kf3 {[%clk 0:00:30]}  Rc8 {[%clk 0:00:13]} 50. Ra2 {[%clk 0:00:28]}  Rf8+ {[%clk 0:00:13]} 51. Nf6 {[%clk 0:00:28]}  Nxf6 {[%clk 0:00:12]} 52. exf6 {[%clk 0:00:29]}  Rxf6+ {[%clk 0:00:12]} 53. Kg2 {[%clk 0:00:26]}  c2 {[%clk 0:00:12]} 54. Ra8 {[%clk 0:00:23]}  c1=Q {[%clk 0:00:11]} 55. Rd8+ {[%clk 0:00:24]}  Ke3 {[%clk 0:00:11]} 56. Kh3 {[%clk 0:00:24]}  Qf1+ {[%clk 0:00:11]} 57. Kh4 {[%clk 0:00:24]}  Rf5 {[%clk 0:00:11]} 58. g4 {[%clk 0:00:20]}  Qf2+ {[%clk 0:00:10]} 59. Kh3 {[%clk 0:00:19]}  Rf3# {[%clk 0:00:09]} 0-1


[Site "https://www.chess.com"]

[Event "Titled Tuesday Blitz August 15 Late 2023"]
[White "Bochnicka, Vladimir"]
[Black "Kovacevic, Radmila"]
[WhiteFideId "14943450"]
[BlackFideId "933171"]
[WhiteElo "2478"]
[BlackElo "2227"]
[Result "0-1"]
[Round "4"]
[TimeControl "180+1"]
[Date "2023.08.15"]
[WhiteClock "0:00:02"]
[BlackClock "0:00:30"]
[Board "135"]

1. e4 {[%clk 0:03:00]}  e5 {[%clk 0:02:57]} 2. Nf3 {[%clk 0:03:00]}  d5 {[%clk 0:02:56]} 3. Nxe5 {[%clk 0:02:56]}  Bd6 {[%clk 0:02:55]} 4. d4 {[%clk 0:02:53]}  dxe4 {[%clk 0:02:55]} 5. Nc4 {[%clk 0:02:39]}  Be7 {[%clk 0:02:55]} 6. Ne3 {[%clk 0:02:36]}  Nf6 {[%clk 0:02:56]} 7. Be2 {[%clk 0:02:34]}  c6 {[%clk 0:02:51]} 8. O-O {[%clk 0:02:32]}  O-O {[%clk 0:02:52]} 9. c4 {[%clk 0:02:32]}  Re8 {[%clk 0:02:45]} 10. Nc3 {[%clk 0:02:31]}  Nbd7 {[%clk 0:02:43]} 11. b3 {[%clk 0:02:31]}  Nf8 {[%clk 0:02:42]} 12. Bb2 {[%clk 0:02:31]}  Ng6 {[%clk 0:02:42]} 13. Re1 {[%clk 0:02:22]}  Nf4 {[%clk 0:02:40]} 14. Bf1 {[%clk 0:02:23]}  Qc7 {[%clk 0:02:31]} 15. Qc2 {[%clk 0:02:21]}  Bb4 {[%clk 0:02:27]} 16. a3 {[%clk 0:02:18]}  Bxc3 {[%clk 0:02:26]} 17. Bxc3 {[%clk 0:02:18]}  Bg4 {[%clk 0:02:18]} 18. d5 {[%clk 0:02:10]}  Bh5 {[%clk 0:02:10]} 19. Bxf6 {[%clk 0:01:59]}  gxf6 {[%clk 0:02:11]} 20. Nf5 {[%clk 0:01:29]}  Re5 {[%clk 0:02:03]} 21. Ng3 {[%clk 0:01:11]}  cxd5 {[%clk 0:02:00]} 22. Qd2 {[%clk 0:01:05]}  Rg5 {[%clk 0:01:50]} 23. cxd5 {[%clk 0:00:59]}  Rxd5 {[%clk 0:01:45]} 24. Qb2 {[%clk 0:00:55]}  Nd3 {[%clk 0:01:28]} 25. Bxd3 {[%clk 0:00:34]}  exd3 {[%clk 0:01:29]} 26. Qxf6 {[%clk 0:00:32]}  d2 {[%clk 0:01:26]} 27. Red1 {[%clk 0:00:17]}  Bxd1 {[%clk 0:01:25]} 28. Rxd1 {[%clk 0:00:18]}  Qc1 {[%clk 0:01:21]} 29. Qf3 {[%clk 0:00:18]}  Re5 {[%clk 0:01:17]} 30. Nf1 {[%clk 0:00:19]}  Re1 {[%clk 0:01:13]} 31. Qg4+ {[%clk 0:00:18]}  Kf8 {[%clk 0:01:01]} 32. Qb4+ {[%clk 0:00:18]}  Ke8 {[%clk 0:00:57]} 33. Qb5+ {[%clk 0:00:16]}  Ke7 {[%clk 0:00:50]} 34. Qxb7+ {[%clk 0:00:15]}  Kd6 {[%clk 0:00:42]} 35. Qb4+ {[%clk 0:00:09]}  Kc6 {[%clk 0:00:41]} 36. Qa4+ {[%clk 0:00:05]}  Kd5 {[%clk 0:00:37]} 37. Qb5+ {[%clk 0:00:05]}  Ke4 {[%clk 0:00:34]} 38. Qb4+ {[%clk 0:00:03]}  Kf5 {[%clk 0:00:32]} 39. Qb5+ {[%clk 0:00:03]}  Kg6 {[%clk 0:00:32]} 40. Qc6+ {[%clk 0:00:03]}  f6 {[%clk 0:00:31]} 41. Qxc1 {[%clk 0:00:02]}  dxc1=Q {[%clk 0:00:30]} 42. Rxc1 {[%clk 0:00:02]}  Rxc1 {[%clk 0:00:30]} 0-1


[Site "https://www.chess.com"]